Workbook

Sheet Buscar Objetivo
B2: Trema | D2: Inversión inicial | G2: Flujos de efectivo por año | L2: VPN= | M2: =SUM(E16:J16)+D4 -> 0.0001713767942
E3: 1 | F3: 2 | G3: 3 | H3: 4 | I3: 5 | J3: 6 | M3: =NPV(B4,E4:J4)+D4 -> 0.0001713767924
B4: 0.2324965387 | D4: -15000 | E4: 6000 | F4: 7500 | G4: 9000 | H4: 678 | I4: 456 | J4: -234
G6: Tremas por año | L6: TIR= | M6: =IRR(D4:J4) -> 0.2324965456
C7: Formula: | E7: =$B4 -> 0.2324965387 | F7: =$B4 -> 0.2324965387 | G7: 0.2324965387 | H7: 0.2324965387 | I7: 0.2324965387 | J7: 0.2324965387
G9: Tremas a decimal más 1
E10: =1+$B$4 -> 1.232496539 | F10: =1+$B$4 -> 1.232496539 | G10: 1.232496539 | H10: 1.232496539 | I10: 1.232496539 | J10: 1.232496539
G12: Tremas a potencia "n"
E13: =PRODUCT($E10:E10) -> 1.232496539 | F13: =PRODUCT($E10:F10) -> 1.519047718 | G13: =PRODUCT($E10:G10) -> 1.872221055 | H13: =PRODUCT($E10:H10) -> 2.30750597 | I13: =PRODUCT($E10:I10) -> 2.843993121 | J13: =PRODUCT($E10:J10) -> 3.505211677
F15: Flujos de efectivo por año descontados a VPN
E16: =E4/E13 -> 4868.16783 | F16: 4937.303754 | G16: 4807.12466 | H16: 293.8237252 | I16: 160.3379406 | J16: -66.7577372 | L16: VPN= | M16: =NPV(B4,D4:J4) -> 0.0001390484963
I19: Valor Presente según con error:
